fUST/lending_fUST_20250503
["ID","MTS","AMOUNT","RATE_DAILY","PERIOD"]
[359678595,1746245150380,-450.41,0.00019452,2]
[359678596,1746245150401,-489.16756268,0.00019452,2]
[359678597,1746245150422,-400.0,0.00019452,2]
[359678598,1746245150443,-479.31,0.00019452,2]
[359678599,1746245150464,-640.63,0.00019452,2]
[359678600,1746245150485,-312.00759643,0.00019452,2]
[359678601,1746245150505,-400.0,0.00019452,2]
[359678602,1746245150526,-400.0,0.00019452,2]
[359678603,1746245150547,-400.0,0.00019452,2]
[359678604,1746245150569,-400.0,0.00019452,2]
[359678605,1746245150589,-467.26,0.00019452,2]
[359678606,1746245150610,-400.0,0.00019452,2]
[359678607,1746245150631,-400.0,0.00019452,2]
[359678608,1746245150652,-400.0,0.00019452,2]
[359678609,1746245150673,-400.0,0.00019452,2]
[359678610,1746245150695,-400.0,0.00019452,2]
[359678611,1746245150715,-400.0,0.00019452,2]
[359678612,1746245150737,-400.0,0.00019452,2]
[359678613,1746245150758,-400.0,0.00019452,2]
[359678614,1746245150780,-400.0,0.00019452,2]
[359678615,1746245150802,-566.36,0.00019452,2]
[359678616,1746245150823,-400.0,0.00019452,2]
[359678617,1746245150844,-400.0,0.00019452,2]
[359678618,1746245150865,-490.69,0.00019452,2]
[359678619,1746245150887,-518.90701312,0.00019452,2]
[359678620,1746245150910,-151.0,0.00019452,2]
[359678621,1746245150932,-500.0,0.00019452,2]
[359678622,1746245150954,-400.0,0.00019452,2]
[359678623,1746245150976,-1565.05,0.00019452,2]
[359678624,1746245150998,-836.43,0.00019452,2]
[359678625,1746245151019,-858.66,0.00019452,2]
[359678626,1746245151040,-298.93960847,0.00019452,2]
[359678627,1746245151061,-400.0,0.00019452,2]
[359678628,1746245151083,-400.0,0.00019452,2]
[359678629,1746245151104,-400.0,0.00019452,2]
[359678630,1746245151124,-1772.82,0.00019452,2]
[359678631,1746245151146,-726.54,0.00019452,2]
[359678632,1746245151169,-2757.73,0.00019452,2]
[359678633,1746245151189,-400.0,0.00019452,2]
[359678634,1746245151212,-3461.92,0.00019452,2]
[359678635,1746245151233,-685.8,0.00019452,2]
[359678636,1746245151254,-400.0,0.00019452,2]
[359678637,1746245151275,-1305.68,0.00019452,2]
[359678638,1746245151295,-552.43,0.00019452,2]
[359678639,1746245151317,-448.64826215,0.00019452,2]
[359678640,1746245151339,-485.01,0.00019452,2]
[359678641,1746245151364,-400.0,0.00019452,2]
[359678642,1746245151386,-1108.68,0.00019452,2]
[359678643,1746245151407,-400.0,0.00019452,2]
[359678644,1746245151428,-3749.21,0.00019452,2]
[359678645,1746245151449,-151.0,0.00019452,2]
[359678646,1746245151470,-500.0,0.00019452,2]
[359678647,1746245151492,-1088.68,0.00019452,2]
[359678648,1746245151513,-400.0,0.00019452,2]
[359678649,1746245151534,-400.0,0.00019452,2]
[359678650,1746245151556,-1040.22,0.00019452,2]
[359678651,1746245151576,-400.0,0.00019452,2]
[359678652,1746245151598,-2292.98,0.00019452,2]
[359678653,1746245151620,-1281.63,0.00019452,2]
[359678654,1746245151642,-400.0,0.00019452,2]
[359678655,1746245151664,-2988.77,0.00019452,2]
[359678656,1746245151685,-119.59945622,0.00019452,2]
[359678677,1746245439650,-833.72319139,0.00019078,2]
[359678678,1746245439659,-300.0,0.00019176,2]
[359678679,1746245439668,-160.0,0.00019177,2]
[359678680,1746245439677,-160.0,0.00019177,2]
[359678681,1746245439686,-160.0,0.00019177,2]
[359678682,1746245439696,-421.66712248,0.00019177,2]
[359678683,1746245439705,-160.0,0.00019177,2]
[359678684,1746245439714,-841.47485993,0.00019177,2]
[359678685,1746245439724,-182.16284668,0.00019177,2]
[359678686,1746245439733,-160.0,0.00019177,2]
[359678687,1746245439742,-12571.9255283,0.00019177,2]
[359678967,1746245442783,-29.63869609,0.00019177,2]
[359678969,1746245442793,-160.0,0.00019177,2]
[359678971,1746245442802,-160.0,0.00019177,2]
[359678973,1746245442811,-400.0,0.00019178,2]
[359678975,1746245442821,-400.0,0.00019178,2]
[359678977,1746245442830,-658.36,0.00019178,2]
[359678979,1746245442839,-400.0,0.00019178,2]
[359678981,1746245442849,-400.0,0.00019178,2]
[359678983,1746245442858,-400.0,0.00019178,2]
[359678985,1746245442868,-797.0,0.00019178,2]
[359678987,1746245442878,-459.65,0.00019178,2]
[359678989,1746245442888,-400.0,0.00019178,2]
[359678991,1746245442898,-1174.82,0.00019178,2]
[359678994,1746245442908,-1528.53,0.00019178,2]
[359678996,1746245442918,-400.0,0.00019178,2]
[359678998,1746245442928,-1246.35,0.00019178,2]
[359679000,1746245442938,-646.21,0.00019178,2]
[359679002,1746245442947,-400.0,0.00019178,2]
[359679004,1746245442957,-400.0,0.00019178,2]
[359679006,1746245442966,-2739.7,0.00019178,2]
[359679008,1746245442976,-400.0,0.00019178,2]
[359679010,1746245442985,-400.0,0.00019178,2]
[359679012,1746245442995,-400.0,0.00019178,2]
[359679014,1746245443004,-414.92,0.00019178,2]
[359679016,1746245443014,-400.0,0.00019178,2]
[359679017,1746245443024,-400.0,0.00019178,2]
[359679020,1746245443034,-400.0,0.00019178,2]
[359679021,1746245443043,-553.54,0.00019178,2]
[359679024,1746245443053,-1001.11,0.00019178,2]
[359679025,1746245443062,-460.81,0.00019178,2]
[359679027,1746245443071,-1133.81,0.00019178,2]
[359679029,1746245443080,-400.0,0.00019178,2]
[359679031,1746245443089,-400.0,0.00019178,2]
[359679033,1746245443099,-445.42,0.00019178,2]
[359679035,1746245443108,-1336.55,0.00019178,2]
[359679037,1746245443118,-1293.31,0.00019178,2]
[359679039,1746245443127,-400.0,0.00019178,2]
[359679041,1746245443137,-862.43,0.00019178,2]
[359679043,1746245443146,-553.55,0.00019178,2]
[359679045,1746245443155,-1262.69,0.00019178,2]
[359679047,1746245443164,-497.49,0.00019178,2]
[359679049,1746245443173,-400.0,0.00019178,2]
[359679051,1746245443182,-439.37,0.00019178,2]
[359679053,1746245443191,-400.0,0.00019178,2]
[359679055,1746245443200,-400.0,0.00019178,2]
[359679057,1746245443209,-587.24,0.00019178,2]
[359679059,1746245443218,-412.87,0.00019178,2]
[359679061,1746245443228,-682.7,0.00019178,2]
[359679063,1746245443237,-974.32,0.00019178,2]
[359679065,1746245443247,-822.46,0.00019178,2]
[359679067,1746245443256,-400.0,0.00019178,2]
[359679069,1746245443265,-400.0,0.00019178,2]
[359679071,1746245443275,-1004.78,0.00019178,2]
[359679073,1746245443284,-501.63941618,0.00019178,2]
[359679075,1746245443293,-400.0,0.00019178,2]
[359679077,1746245443301,-458.48,0.00019178,2]
[359679079,1746245443311,-400.0,0.00019178,2]
[359679081,1746245443321,-400.0,0.00019178,2]
[359679083,1746245443330,-400.0,0.00019178,2]
[359679085,1746245443340,-400.0,0.00019178,2]
[359679087,1746245443349,-400.0,0.00019178,2]
[359679090,1746245443359,-1034.83,0.00019178,2]
[359679092,1746245443369,-400.0,0.00019178,2]
[359679094,1746245443378,-400.0,0.00019178,2]
[359679096,1746245443387,-1426.22,0.00019178,2]
[359679098,1746245443397,-400.0,0.00019178,2]
[359679100,1746245443406,-400.0,0.00019178,2]
[359679102,1746245443415,-400.0,0.00019178,2]
[359679104,1746245443425,-1434.63,0.00019178,2]
[359679106,1746245443433,-400.0,0.00019178,2]
[359679107,1746245443443,-1073.33,0.00019178,2]
[359679109,1746245443452,-400.0,0.00019178,2]
[359679111,1746245443465,-1625.08,0.00019178,2]
[359679113,1746245443475,-333.20959598,0.00019178,2]
[359679115,1746245443484,-666.0,0.00019178,2]
[359679116,1746245443493,-400.22,0.00019178,2]
[359679117,1746245443503,-400.0,0.00019178,2]
[359679118,1746245443512,-911.04,0.00019178,2]
[359679119,1746245443522,-400.0,0.00019178,2]
[359679120,1746245443531,-3436.77,0.00019178,2]
[359679122,1746245443540,-483.75,0.00019178,2]
[359679124,1746245443550,-400.0,0.00019178,2]
[359679126,1746245443560,-428.32,0.00019178,2]
[359679129,1746245443569,-400.0,0.00019178,2]
[359679130,1746245443579,-506.4,0.00019178,2]
[359679132,1746245443588,-1016.29,0.00019178,2]
[359679134,1746245443597,-400.0,0.00019178,2]
[359679136,1746245443607,-502.27,0.00019178,2]
[359679138,1746245443616,-400.0,0.00019178,2]
[359679140,1746245443625,-635.7755849,0.00019189,2]
[359679142,1746245443635,-403.2300542,0.00019405,2]
[359679144,1746245443644,-287.1,0.00019442,3]
[359679146,1746245443654,-861.32,0.00019442,3]
[359679148,1746245443663,-1207.62,0.00019451,2]
[359679150,1746245443672,-655.47,0.00019451,2]
[359679152,1746245443681,-1516.92,0.00019451,2]
[359679154,1746245443691,-400.0,0.00019451,2]
[359679156,1746245443700,-400.0,0.00019451,2]
[359679158,1746245443709,-482.54,0.00019451,2]
[359679160,1746245443718,-2644.51,0.00019451,2]
[359679162,1746245443728,-766.72,0.00019451,2]
[359679164,1746245443739,-1196.87,0.00019451,2]
[359679166,1746245443748,-400.0,0.00019451,2]
[359679168,1746245443758,-997.96,0.00019451,2]
[359679170,1746245443767,-2527.92,0.00019451,2]
[359679172,1746245443776,-400.0,0.00019451,2]
[359679174,1746245443786,-953.53,0.00019451,2]
[359679176,1746245443795,-2101.9,0.00019451,2]
[359679178,1746245443804,-772.17,0.00019452,2]
[359679180,1746245443814,-400.0,0.00019452,2]
[359679182,1746245443823,-400.0,0.00019452,2]
[359679184,1746245443832,-400.0,0.00019452,2]
[359679186,1746245443842,-514.86,0.00019452,2]
[359679188,1746245443851,-400.0,0.00019452,2]
[359679190,1746245443860,-400.0,0.00019452,2]
[359679192,1746245443869,-400.0,0.00019452,2]
[359679194,1746245443878,-400.0,0.00019452,2]
[359679196,1746245443887,-745.62,0.00019452,2]
[359679198,1746245443897,-400.0,0.00019452,2]
[359679200,1746245443907,-608.63,0.00019452,2]
[359679202,1746245443916,-502.9,0.00019452,2]
[359679204,1746245443925,-770.92,0.00019452,2]
[359679206,1746245443934,-400.0,0.00019452,2]
[359679208,1746245443944,-400.0,0.00019452,2]
[359679210,1746245443954,-617.27,0.00019452,2]
[359679212,1746245443963,-830.14,0.00019452,2]
[359679214,1746245443972,-400.0,0.00019452,2]
[359679216,1746245443982,-400.0,0.00019452,2]
[359679218,1746245443991,-400.0,0.00019452,2]
[359679220,1746245444000,-469.96,0.00019452,2]
[359679222,1746245444009,-400.0,0.00019452,2]
[359679224,1746245444018,-411.62703676,0.00019452,2]
[359679226,1746245444027,-400.0,0.00019452,2]
[359679228,1746245444038,-2957.07,0.00019452,2]
[359679230,1746245444047,-466.25,0.00019452,2]
[359679232,1746245444056,-400.0,0.00019452,2]
[359679234,1746245444066,-324.82288326,0.00019452,2]
[359679236,1746245444075,-151.0,0.00019452,2]
[359679238,1746245444085,-400.0,0.00019452,2]
[359679240,1746245444095,-461.93,0.00019452,2]
[359679242,1746245444104,-400.0,0.00019452,2]
[359679245,1746245444114,-400.0,0.00019452,2]
[359679248,1746245444135,-400.0,0.00019452,2]
[359679250,1746245444145,-400.0,0.00019452,2]
[359679252,1746245444154,-4247.54,0.00019452,2]
[359679254,1746245444164,-400.0,0.00019452,2]
[359679256,1746245444174,-658.36,0.00019452,2]
[359679258,1746245444184,-400.0,0.00019452,2]
[359679260,1746245444195,-400.0,0.00019452,2]
[359679262,1746245444205,-151.0,0.00019452,2]
[359679264,1746245444214,-500.0,0.00019452,2]
[359679266,1746245444223,-400.0,0.00019452,2]
[359679268,1746245444232,-797.0,0.00019452,2]
[359679270,1746245444241,-459.65,0.00019452,2]
[359679272,1746245444251,-400.0,0.00019452,2]
[359679274,1746245444260,-1174.82,0.00019452,2]
[359679276,1746245444270,-400.0,0.00019452,2]
[359679278,1746245444280,-1528.53,0.00019452,2]
[359679280,1746245444290,-1246.35,0.00019452,2]
[359679282,1746245444300,-646.21,0.00019452,2]
[359679284,1746245444310,-400.0,0.00019452,2]
[359679286,1746245444319,-400.0,0.00019452,2]
[359679288,1746245444328,-2739.7,0.00019452,2]
[359679290,1746245444338,-400.0,0.00019452,2]
[359679293,1746245444347,-400.0,0.00019452,2]
[359679295,1746245444357,-400.0,0.00019452,2]
[359679297,1746245444367,-414.92,0.00019452,2]
[359679299,1746245444378,-400.0,0.00019452,2]
[359679301,1746245444388,-400.0,0.00019452,2]
[359679303,1746245444397,-163.90470348,0.00019452,2]
[359679305,1746245444408,-553.54,0.00019452,2]
[359679307,1746245444418,-1001.11,0.00019452,2]
[359679309,1746245444428,-460.81,0.00019452,2]
[359679311,1746245444437,-1133.81,0.00019452,2]
[359679313,1746245444446,-400.0,0.00019452,2]
[359679315,1746245444457,-400.0,0.00019452,2]
[359679317,1746245444468,-445.42,0.00019452,2]
[359679319,1746245444478,-1336.55,0.00019452,2]
[359679321,1746245444488,-1293.31,0.00019452,2]
[359679323,1746245444499,-400.0,0.00019452,2]
[359679325,1746245444508,-862.43,0.00019452,2]
[359679327,1746245444518,-553.55,0.00019452,2]
[359679329,1746245444529,-1262.69,0.00019452,2]
[359679331,1746245444539,-497.49,0.00019452,2]
[359679333,1746245444549,-400.0,0.00019452,2]
[359679335,1746245444558,-439.37,0.00019452,2]
[359679337,1746245444568,-400.0,0.00019452,2]
[359679339,1746245444578,-400.0,0.00019452,2]
[359679341,1746245444587,-587.24,0.00019452,2]
[359679343,1746245444596,-412.87,0.00019452,2]
[359679346,1746245444606,-682.7,0.00019452,2]
[359679348,1746245444616,-974.32,0.00019452,2]
[359679350,1746245444625,-822.46,0.00019452,2]
[359679352,1746245444635,-400.0,0.00019452,2]
[359679354,1746245444645,-400.0,0.00019452,2]
[359679356,1746245444655,-1004.78,0.00019452,2]
[359679358,1746245444665,-400.0,0.00019452,2]
[359679360,1746245444674,-458.48,0.00019452,2]
[359679362,1746245444683,-400.0,0.00019452,2]
[359679364,1746245444693,-400.0,0.00019452,2]
[359679366,1746245444704,-400.0,0.00019452,2]
[359679368,1746245444713,-400.0,0.00019452,2]
[359679370,1746245444722,-400.0,0.00019452,2]
[359679372,1746245444731,-906.43666524,0.00019452,2]
[359679482,1746245445755,-128.39333476,0.00019452,2]
[359679484,1746245445765,-400.0,0.00019452,2]
[359679486,1746245445774,-400.0,0.00019452,2]
[359679488,1746245445783,-1426.22,0.00019452,2]
[359679490,1746245445793,-445.41604303,0.00019452,2]
[359679492,1746245445803,-473.86253821,0.00019452,2]
[359679494,1746245445814,-400.0,0.00019452,2]
[359679496,1746245445823,-1434.63,0.00019452,2]
[359679498,1746245445833,-400.0,0.00019452,2]
[359679500,1746245445842,-1073.33,0.00019452,2]
[359679502,1746245445852,-400.0,0.00019452,2]
[359679504,1746245445862,-1625.08,0.00019452,2]
[359679506,1746245445871,-666.0,0.00019452,2]
[359679508,1746245445881,-400.22,0.00019452,2]
[359679510,1746245445891,-400.0,0.00019452,2]
[359679512,1746245445901,-911.04,0.00019452,2]
[359679514,1746245445911,-400.0,0.00019452,2]
[359679516,1746245445921,-3436.77,0.00019452,2]
[359679518,1746245445931,-483.75,0.00019452,2]
[359679520,1746245445941,-400.0,0.00019452,2]
[359679522,1746245445951,-428.32,0.00019452,2]
[359679524,1746245445962,-400.0,0.00019452,2]
[359679526,1746245445971,-506.4,0.00019452,2]
[359679528,1746245445981,-1016.29,0.00019452,2]
[359679530,1746245445990,-400.0,0.00019452,2]
[359679532,1746245446000,-502.27,0.00019452,2]
[359679534,1746245446010,-300.0,0.00019452,2]
[359679536,1746245446019,-500.0,0.00019452,2]
[359679538,1746245446029,-1000.0,0.00019452,2]
[359679540,1746245446039,-11461.33757023,0.00019602,2]
[359679542,1746245446049,-7139.0,0.00019706,2]
[359679544,1746245446058,-185.40298854,0.00019725,2]
[359679610,1746245446690,-1022.21701146,0.00019725,2]
[359679612,1746245446699,-655.47,0.00019725,2]
[359679614,1746245446709,-1516.92,0.00019725,2]
[359679616,1746245446719,-400.0,0.00019725,2]
[359679618,1746245446729,-400.0,0.00019725,2]
[359679621,1746245446739,-482.54,0.00019725,2]
[359679623,1746245446749,-2644.51,0.00019725,2]
[359679625,1746245446759,-766.72,0.00019725,2]
[359679627,1746245446769,-1196.87,0.00019725,2]
[359679629,1746245446778,-400.0,0.00019725,2]
[359679631,1746245446788,-997.96,0.00019725,2]
[359679633,1746245446799,-1662.59392932,0.00019725,2]
[359680001,1746246273249,550.75,0.00022,30]
[359680003,1746246341097,-206.698817,0.00018153,2]
[359680004,1746246341118,-247.636785,0.00018465,2]
[359680005,1746246341140,-500.0,0.000189,2]
[359680006,1746246341162,-150.0,0.000189,2]
[359680007,1746246341183,-525.16027932,0.00019078,2]
[359680092,1746246631793,-500.0,0.000187,2]
[359680093,1746246631804,-525.58083412,0.00018959,2]
[359680094,1746246631813,-729.50779251,0.00019073,2]
[359680095,1746246631823,-1053.6567929,0.00019078,2]
[359680096,1746246631832,-574.2,0.0001916,3]
[359680097,1746246631841,-200.0,0.00019168,2]
[359680098,1746246631851,-300.0,0.00019169,2]
[359680099,1746246631861,-300.0,0.00019169,2]
[359680100,1746246631872,-209.0,0.00019169,2]
[359680101,1746246631882,-1200.0,0.00019169,2]
[359680102,1746246631891,-24398.16970686,0.0001917,2]
[359680103,1746246631922,-130670.47036545,0.0001917,2]
[359680104,1746246631932,-505.01105645,0.00019173,2]
[359680105,1746246631941,-500.0,0.00019173,2]
[359680106,1746246631951,-500.0,0.00019173,2]
[359680107,1746246631960,-500.0,0.00019173,2]
[359680109,1746246631970,-500.0,0.00019173,2]
[359680112,1746246631979,-500.0,0.00019173,2]
[359680114,1746246631989,-500.0,0.00019173,2]
[359680115,1746246631998,-500.0,0.00019173,2]
[359680117,1746246632007,-502.44665552,0.00019173,2]
[359680119,1746246632016,-502.33294583,0.00019173,2]
[359680121,1746246632025,-309.1594888,0.00019173,2]
[359680122,1746246632034,-502.47467152,0.00019173,2]
[359680123,1746246632043,-500.0,0.00019173,2]
[359680124,1746246632053,-15781.88169285,0.00019173,2]
[359680125,1746246632062,-160.0,0.00019178,2]
[359680126,1746246632072,-160.0,0.00019178,2]
[359680127,1746246632081,-160.0,0.00019178,2]
[359680128,1746246632091,-160.0,0.00019178,2]
[359680129,1746246632101,-421.66712248,0.00019178,2]
[359680130,1746246632111,-182.16284668,0.00019178,2]
[359680131,1746246632120,-160.0,0.00019178,2]
[359680132,1746246632130,-12601.56422439,0.00019178,2]
[359680133,1746246632140,-160.0,0.00019178,2]
[359680134,1746246632149,-160.0,0.00019178,2]
[359680135,1746246632159,-400.0,0.00019178,2]
[359680136,1746246632168,-400.0,0.00019178,2]
[359680137,1746246632185,-400.0,0.00019178,2]
[359680138,1746246632198,-400.0,0.00019178,2]
[359680139,1746246632207,-400.0,0.00019178,2]
[359680140,1746246632217,-400.0,0.00019178,2]
[359680141,1746246632226,-400.0,0.00019178,2]
[359680142,1746246632236,-40.66025913,0.00019178,2]
[359680151,1746246637933,-841.47485993,0.00019178,2]
[359680152,1746246637943,-359.33974087,0.00019178,2]
[359680153,1746246637955,-400.0,0.00019178,2]
[359680154,1746246637964,-215.649,0.00019178,2]
[359680155,1746246637975,-400.0,0.00019178,2]
[359680156,1746246637985,-400.0,0.00019178,2]
[359680157,1746246637995,-400.0,0.00019178,2]
[359680158,1746246638005,-400.0,0.00019178,2]
[359680159,1746246638015,-400.0,0.00019178,2]
[359680160,1746246638024,-400.0,0.00019178,2]
[359680161,1746246638034,-519.16,0.00019178,2]
[359680163,1746246638044,-400.0,0.00019178,2]
[359680164,1746246638055,-400.0,0.00019178,2]
[359680165,1746246638065,-400.0,0.00019178,2]
[359680166,1746246638074,-400.0,0.00019178,2]
[359680167,1746246638084,-400.0,0.00019178,2]
[359680168,1746246638094,-400.0,0.00019178,2]
[359680169,1746246638108,-449.8,0.00019178,2]
[359680170,1746246638118,-400.0,0.00019178,2]
[359680171,1746246638128,-400.0,0.00019178,2]
[359680172,1746246638139,-246.57267011,0.00019178,2]
[359680173,1746246638150,-444.6,0.00019178,2]
[359680174,1746246638161,-507.41,0.00019178,2]
[359680175,1746246638172,-400.0,0.00019178,2]
[359680176,1746246638181,-154.81743692,0.00019178,2]
[359680177,1746246638192,-707.82,0.00019178,2]
[359680178,1746246638201,-400.0,0.00019178,2]
[359680179,1746246638211,-400.0,0.00019178,2]
[359680180,1746246638221,-400.0,0.00019178,2]
[359680181,1746246638231,-400.0,0.00019178,2]
[359680182,1746246638240,-400.0,0.00019178,2]
[359680183,1746246638250,-400.0,0.00019178,2]
[359680184,1746246638260,-400.0,0.00019178,2]
[359680185,1746246638269,-400.0,0.00019178,2]
[359680186,1746246638279,-471.95,0.00019178,2]
[359680187,1746246638288,-683.49,0.00019178,2]
[359680188,1746246638298,-400.0,0.00019178,2]
[359680189,1746246638308,-400.0,0.00019178,2]
[359680190,1746246638318,-400.0,0.00019178,2]
[359680191,1746246638328,-557.91,0.00019178,2]
[359680192,1746246638337,-443.44,0.00019178,2]
[359680193,1746246638348,-460.99,0.00019178,2]
[359680194,1746246638359,-706.68,0.00019178,2]
[359680195,1746246638369,-400.0,0.00019178,2]
[359680196,1746246638380,-400.0,0.00019178,2]
[359680197,1746246638390,-440.68806113,0.00019178,2]
[359680198,1746246638438,-320.28193887,0.00019178,2]
[359680199,1746246638448,-400.0,0.00019178,2]
[359680200,1746246638458,-400.0,0.00019178,2]
[359680201,1746246638468,-2727.31,0.00019178,2]
[359680202,1746246638478,-400.0,0.00019178,2]
[359680203,1746246638487,-312.43868403,0.00019178,2]
[359680251,1746246640322,-87.56131597,0.00019178,2]
[359680252,1746246640332,-400.0,0.00019178,2]
[359680253,1746246640341,-400.0,0.00019178,2]
[359680254,1746246640350,-256.388684,0.00019178,2]
[359680544,1746246643070,-143.611316,0.00019178,2]
[359680546,1746246643079,-400.0,0.00019178,2]
[359680548,1746246643089,-400.0,0.00019178,2]
[359680550,1746246643099,-400.0,0.00019178,2]
[359680553,1746246643108,-430.8,0.00019178,2]
[359680555,1746246643117,-400.0,0.00019178,2]
[359680557,1746246643127,-108.71134117,0.00019178,2]
[359680560,1746246643139,-291.28865883,0.00019178,2]
[359680564,1746246643148,-400.0,0.00019178,2]
[359680566,1746246643158,-423.44,0.00019178,2]
[359680568,1746246643167,-400.0,0.00019178,2]
[359680570,1746246643177,-427.39,0.00019178,2]
[359680572,1746246643186,-400.0,0.00019178,2]
[359680574,1746246643196,-460.41,0.00019178,2]
[359680576,1746246643206,-400.0,0.00019178,2]
[359680578,1746246643215,-400.0,0.00019178,2]
[359680580,1746246643225,-400.0,0.00019178,2]
[359680582,1746246643234,-400.0,0.00019178,2]
[359680585,1746246643244,-400.0,0.00019178,2]
[359680587,1746246643254,-400.0,0.00019178,2]
[359680589,1746246643264,-603.49,0.00019178,2]
[359680591,1746246643274,-164.70869415,0.00019178,2]
[359680593,1746246643283,-400.0,0.00019178,2]
[359680595,1746246643293,-400.0,0.00019178,2]
[359680597,1746246643306,-400.0,0.00019178,2]
[359680599,1746246643316,-400.0,0.00019178,2]
[359680601,1746246643325,-669.69,0.00019178,2]
[359680603,1746246643335,-1142.48,0.00019178,2]
[359680605,1746246643344,-2511.4,0.00019178,2]
[359680607,1746246643354,-400.0,0.00019178,2]
[359680609,1746246643364,-1039.32,0.00019178,2]
[359680611,1746246643373,-592.36,0.00019178,2]
[359680613,1746246643383,-400.0,0.00019178,2]
[359680615,1746246643394,-802.97,0.00019178,2]
[359680617,1746246643403,-408.3,0.00019178,2]
[359680619,1746246643414,-400.0,0.00019178,2]
[359680621,1746246643423,-400.0,0.00019178,2]
[359680623,1746246643433,-400.0,0.00019178,2]
[359680625,1746246643443,-507.42,0.00019178,2]
[359680627,1746246643453,-1076.92,0.00019178,2]
[359680629,1746246643462,-843.3,0.00019178,2]
[359680631,1746246643472,-316.57408729,0.00019178,2]
[359680633,1746246643482,-1225.17,0.00019178,2]
[359680635,1746246643491,-1157.47,0.00019178,2]
[359680637,1746246643501,-400.0,0.00019178,2]
[359680639,1746246643510,-400.0,0.00019178,2]
[359680641,1746246643519,-400.0,0.00019178,2]
[359680643,1746246643529,-422.41,0.00019178,2]
[359680645,1746246643539,-1044.21,0.00019178,2]
[359680648,1746246643549,-893.12,0.00019178,2]
[359680650,1746246643558,-625.81,0.00019178,2]
[359680652,1746246643568,-1185.53,0.00019178,2]
[359680654,1746246643577,-400.0,0.00019178,2]
[359680656,1746246643587,-400.0,0.00019178,2]
[359680658,1746246643596,-402.75,0.00019178,2]
[359680660,1746246643606,-538.3,0.00019178,2]
[359680662,1746246643616,-921.05,0.00019178,2]
[359680664,1746246643625,-1106.98,0.00019178,2]
[359680665,1746246643634,-420.27,0.00019178,2]
[359680668,1746246643644,-221.13257488,0.00019178,2]
[359680670,1746246643653,-456.03,0.00019178,2]
[359680672,1746246643663,-400.0,0.00019178,2]
[359680674,1746246643673,-600.85,0.00019178,2]
[359680676,1746246643682,-400.0,0.00019178,2]
[359680678,1746246643691,-400.0,0.00019178,2]
[359680679,1746246643701,-400.0,0.00019178,2]
[359680681,1746246643710,-1390.51,0.00019178,2]
[359680683,1746246643720,-948.6,0.00019178,2]
[359680685,1746246643729,-400.0,0.00019178,2]
[359680688,1746246643739,-400.0,0.00019178,2]
[359680689,1746246643748,-1307.37,0.00019178,2]
[359680691,1746246643758,-400.0,0.00019178,2]
[359680693,1746246643767,-400.0,0.00019178,2]